bitfinex-derivatives/quotes_ETHF0:USTF0_20250923
["timestamp","ask_amount","ask_price","bid_price","bid_amount"]
[1758661293010,0.3155,4174.4,4173.0,1.18342]
[1758661293011,0.5293,4173.4,4173.3,0.4411]
[1758661293214,0.1257,4174.0,4172.9,0.218]
[1758661293215,0.8662,4173.0,4172.9,0.218]
[1758661293405,0.88333116,4173.0,4172.9,0.246]
[1758661294706,0.67213116,4173.0,4172.9,0.89514]
[1758661294912,0.67213116,4173.0,4172.9,1.11824]
[1758661295110,0.88333116,4173.0,4172.9,0.6871]
[1758661296606,0.01713116,4173.0,4172.9,0.9667]
[1758661297312,0.33263116,4173.0,4172.9,0.9667]
[1758661297808,0.54643116,4173.0,4172.9,0.9667]
[1758661298110,0.67213116,4173.0,4172.9,0.6871]
[1758661299101,0.88333116,4173.0,4172.9,0.4411]
[1758661299304,0.7405,4172.4,4172.3,0.4411]
[1758661299512,0.7405,4172.4,4172.3,0.6871]
[1758661299900,0.7405,4172.4,4172.3,1.11829]
[1758661300510,0.54643116,4172.4,4172.3,1.15189]
[1758661300711,0.33263116,4172.4,4172.3,1.39789]
[1758661301809,0.54643116,4172.4,4172.3,1.39789]
[1758661302520,0.75763116,4172.4,4172.3,1.11829]
[1758661302704,0.75763116,4172.4,4172.3,0.6871]
[1758661302907,0.44213116,4172.4,4172.3,0.246]
[1758661303314,0.5507,4172.0,4171.9,0.43124]
[1758661303509,0.88333116,4172.0,4171.9,0.43124]
[1758661303715,0.88333116,4172.0,4171.9,0.246]
[1758661303716,0.56783116,4172.0,4171.9,0.246]
[1758661303911,0.56783116,4172.0,4171.6,0.43127]
[1758661304113,0.5507,4171.5,4171.4,0.218]
[1758661304315,0.3155,4171.9,4171.8,0.2231]
[1758661304513,0.75763116,4171.9,4171.8,0.464]
[1758661304715,1.18887116,4171.9,4171.8,0.246]
[1758661304920,0.75763116,4171.9,4171.8,0.246]
[1758661306914,0.75763116,4171.9,4171.8,0.6871]
[1758661307117,0.75763116,4171.9,4171.8,0.246]
[1758661309422,0.75763116,4171.9,4171.8,0.67725]
[1758661310211,0.75763116,4171.9,4171.8,0.89525]
[1758661317325,0.75763116,4171.9,4171.8,1.10375]
[1758661320324,0.75763116,4171.9,4171.8,1.38365]
[1758661320524,0.54643116,4171.9,4171.8,1.38365]
[1758661320719,0.1257,4172.5,4172.2,0.43121]
[1758661320720,0.3112,4172.3,4172.2,0.43121]
[1758661320924,0.3112,4172.5,4172.4,1.13919]
[1758661322422,0.5512,4173.0,4172.9,0.85924]
[1758661322622,0.5512,4173.0,4172.7,0.246]
[1758661322820,0.7367,4172.9,4172.8,0.43115]
[1758661323422,0.7367,4172.9,4172.7,0.246]
[1758661324029,0.7367,4172.9,4172.8,0.43115]
[1758661327733,0.7367,4172.9,4171.9,2.5607161]
[1758661327734,0.8613,4172.0,4171.9,2.5607161]
[1758661327921,0.8613,4172.0,4171.9,0.43124]
[1758661328331,0.8613,4172.0,4171.7,0.245]
[1758661328631,0.7367,4171.7,4171.6,0.43127]
[1758661330026,0.5501,4171.5,4171.4,0.67629]
[1758661330226,0.8613,4171.5,4171.4,0.67629]
[1758661330830,0.3112,4172.0,4171.9,1.13924]
[1758661333037,0.5485,4173.0,4172.9,0.65114]
[1758661333337,0.8506,4173.0,4172.9,0.65114]
[1758661333727,0.8506,4173.0,4172.9,0.85344]
[1758661334040,0.3021,4173.0,4172.9,1.13344]
[1758661334230,0.5098,4173.0,4172.9,1.13344]
[1758661334532,0.6432,4173.0,4172.9,0.85344]
[1758661334736,0.6432,4173.0,4172.9,1.09844]
[1758661334937,0.8495,4173.5,4173.4,0.65109]
[1758661336026,0.3021,4173.4,4173.3,0.43109]
[1758661336229,0.7249,4173.4,4173.3,0.65109]
[1758661337340,0.4228,4173.4,4173.2,0.4311]
[1758661337541,0.7249,4173.3,4173.2,0.4311]
[1758661338142,1.156,4173.3,4173.2,0.4311]
[1758661338542,0.7249,4173.3,4173.2,0.4311]
[1758661339240,1.156,4173.3,4173.2,0.4311]
[1758661339741,0.7249,4173.3,4173.2,0.6511]
[1758661341338,1.28943,4173.0,4172.9,0.245]
[1758661341842,0.8583,4173.0,4172.9,0.67614]
[1758661343442,1.28943,4173.0,4172.9,0.67614]
[1758661343838,1.28943,4173.0,4172.9,0.245]
[1758661346740,0.8583,4173.0,4172.9,0.89054]
[1758661346941,0.6432,4173.0,4172.9,1.37974]
[1758661348249,0.8554,4173.0,4172.9,4.30764]
[1758661350357,0.8554,4173.0,4172.9,4.58754]
[1758661350735,3.3412,4174.5,4174.3,0.5181]
[1758661350736,0.4289,4174.4,4174.3,0.5181]
[1758661350939,0.4289,4174.4,4174.3,1.16349]
[1758661351444,0.7366,4174.4,4174.3,0.85469]
[1758661352249,0.7366,4174.4,4174.3,1.16349]
[1758661352742,0.7366,4174.4,4174.3,0.43099]
[1758661353643,0.3077,4174.3,4174.1,3.63881]
[1758661353845,0.4289,4174.3,4174.2,0.431]
[1758661354045,0.7366,4174.3,4174.2,0.431]
[1758661357045,0.7366,4174.3,4174.2,0.6454]
[1758661357643,0.7366,4174.3,4174.2,0.431]
[1758661357851,0.1334,4174.5,4174.1,3.63881]
[1758661357852,0.7366,4174.2,4174.1,3.63881]
[1758661359256,0.7366,4174.2,4174.1,3.85321]
[1758661361451,0.01979,4174.2,4174.1,4.37131]
[1758661361652,0.4289,4175.0,4174.9,0.95413]
[1758661361849,0.93737513,4175.0,4174.9,0.95413]
[1758661362651,0.72517513,4175.0,4174.9,1.16343]
[1758661362848,3.2078,4175.9,4174.9,0.7325]
[1758661363054,0.4289,4175.5,4175.4,0.4237]
[1758661363446,0.9373518,4175.5,4175.4,0.4237]
[1758661363645,0.4289,4175.5,4175.4,1.16338]
[1758661364853,0.3077,4176.3,4175.6,0.3088]
[1758661365055,0.7366,4176.3,4176.2,0.4308]
[1758661366554,0.7366,4176.3,4175.9,3.5166]
[1758661366555,0.8652,4176.0,4175.9,3.2078]
[1758661367058,0.7366,4175.7,4175.6,0.43085]
[1758661370254,0.4289,4175.7,4175.5,0.43086]
[1758661370456,0.4289,4175.7,4172.3,10.78]
[1758661370457,0.2122,4175.0,4174.8,3.2078]
[1758661370655,0.7366,4174.9,4174.8,3.4222]
[1758661371052,0.7366,4174.9,4174.8,3.2078]
[1758661371252,0.7366,4174.9,4174.8,3.731]
[1758661371763,0.4289,4174.9,4174.8,3.9403]
[1758661372458,0.4289,4174.9,4174.7,0.43095]
[1758661372459,0.3077,4173.5,4173.4,3.2078]
[1758661372668,0.55968,4173.5,4173.0,0.43112]
[1758661372872,0.5199,4173.2,4173.1,0.3088]
[1758661373058,0.7366,4173.2,4173.1,0.3088]
[1758661373258,0.4343,4173.7,4173.6,0.4328]
[1758661373560,0.2135,4173.7,4173.6,3.9491]
[1758661374364,0.7578,4173.7,4173.6,3.9491]
[1758661374853,0.4343,4173.7,4173.6,3.9491]
[1758661375055,0.2135,4173.7,4173.6,3.9491]
[1758661375256,3.4213,4174.3,4174.2,0.6483]
[1758661375458,3.6421,4174.3,4174.2,0.9568]
[1758661375661,3.9656,4174.3,4174.2,0.9568]
[1758661377859,0.7578,4174.3,4174.2,0.9568]
[1758661378058,0.7578,4174.3,4174.2,0.431]
[1758661378263,1.26587319,4174.3,4174.2,0.431]
[1758661379565,0.2135,4174.8,4174.7,1.17225]
[1758661381960,0.6803,4175.2,4175.1,1.17221]
[1758661382161,1.18856419,4175.2,4175.1,1.17221]
[1758661382860,1.69696419,4175.2,4175.1,1.17221]
[1758661383677,1.69696419,4175.2,4175.1,0.5258]
[1758661383875,1.69696419,4175.2,4175.1,0.95671]
[1758661384076,1.26606419,4175.2,4175.1,0.95671]
[1758661384375,1.69696419,4175.2,4175.1,0.95671]
[1758661384974,1.26606419,4175.2,4175.1,0.95671]
[1758661385182,1.69696419,4175.2,4175.1,0.95671]
[1758661386072,1.69696419,4175.2,4175.1,0.5258]
[1758661386572,1.69696419,4175.2,4175.1,0.95671]
[1758661387178,1.94296419,4175.2,4175.1,0.95671]
[1758661387381,1.51206419,4175.2,4175.1,1.17221]
[1758661387582,1.94296419,4175.2,4175.1,1.17221]
[1758661388383,1.94296419,4175.2,4175.1,0.7413]
[1758661388776,1.51206419,4175.2,4175.1,0.7413]
[1758661388981,1.94296419,4175.2,4175.1,0.5258]
[1758661389184,1.94296419,4175.2,4175.1,0.95671]
[1758661391086,0.4343,4174.7,4174.6,4.38005]
[1758661391288,1.18875,4174.7,4174.6,4.16455]
[1758661391487,1.18875,4174.7,4174.6,3.2078]
[1758661391786,1.18879,4174.3,4174.2,0.73949]
[1758661391992,1.18879,4174.3,4174.2,0.95679]
[1758661393089,0.7578,4174.3,4174.2,0.73949]
[1758661393490,1.18879,4174.3,4174.2,0.73949]
[1758661393685,1.18879,4174.3,4174.2,0.94069]
[1758661394482,0.7578,4174.3,4174.2,0.94069]
[1758661398897,0.7578,4174.3,4174.2,1.15669]
[1758661399196,1.18879,4174.3,4174.2,1.15669]
[1758661399695,0.7578,4174.3,4174.2,1.15669]
[1758661399895,0.7578,4174.3,4174.1,3.2078]
[1758661400092,0.7578,4174.3,4171.9,1.70917207]
[1758661400093,1.31623,4172.0,4171.9,1.70917207]
[1758661400294,0.86902,4171.1,4170.9,2.9504]
[1758661400495,1.18876,4170.8,4170.7,2.86980679]
[1758661400695,0.43142,4170.2,4169.7,0.251]
[1758661400892,0.1276,4170.5,4169.3,0.251]
[1758661400893,3.63925,4169.9,4169.3,0.251]
[1758661401092,0.43146,4169.8,4169.7,0.2012]
[1758661401294,0.86916,4169.8,4169.7,0.2012]
[1758661401596,0.86916,4169.8,4169.7,3.07100679]
[1758661401794,0.7574,4169.8,4169.7,3.07100679]
[1758661401994,0.5428,4169.8,4169.7,3.28700679]
[1758661407505,3.5214,4169.9,4169.8,0.85225]
[1758661408005,0.33799321,4170.4,4169.8,5.85225]
[1758661408207,3.5214,4170.9,4170.8,0.5571]
[1758661408411,3.2078,4170.9,4170.8,0.5571]
[1758661408704,0.3136,4171.3,4171.2,0.4208]
[1758661408901,3.649,4171.5,4171.4,0.4208]
[1758661409404,3.8525,4171.5,4171.4,0.4208]
[1758661411601,4.0649,4171.5,4171.4,0.4208]
[1758661413211,0.2035,4171.1,4171.0,0.89642]
[1758661413399,0.7295,4171.1,4171.0,0.89642]
[1758661413605,0.43135,4170.9,4170.7,0.43135]
[1758661413805,0.7295,4170.6,4170.5,0.64548]
[1758661415717,0.7295,4170.6,4170.5,0.85218]
[1758661416421,0.5171,4171.3,4171.2,0.85211]
[1758661416807,0.3136,4171.3,4171.2,0.85211]
[1758661417114,0.3136,4171.3,4171.2,0.98841]
[1758661419208,0.3136,4171.3,4171.2,0.85211]
[1758661419416,0.5171,4171.3,4171.2,0.85211]
[1758661419716,0.7295,4171.3,4171.2,0.43131]
[1758661420225,0.7295,4171.3,4171.2,0.64541]
[1758661420421,0.7295,4171.3,4171.2,0.85211]
[1758661422914,0.3136,4171.3,4171.2,0.85211]
[1758661423114,0.3136,4171.3,4171.2,0.98841]
[1758661425224,0.3136,4171.7,4171.6,0.98837]
[1758661425424,0.5171,4171.7,4171.6,0.85207]
[1758661425819,0.3136,4171.7,4171.6,0.85207]
[1758661426124,3.6522,4172.0,4171.9,0.98834]
[1758661426316,4.0681,4172.0,4171.9,0.85204]
[1758661426716,4.0681,4172.0,4171.9,0.43124]
[1758661431728,0.7295,4171.4,4171.3,0.4631]
[1758661432332,0.7295,4171.4,4171.3,0.8944]
[1758661434129,0.3122,4170.9,4170.8,0.43135]
[1758661434336,0.7265,4170.9,4170.8,1.10145]
[1758661436728,0.3122,4170.9,4170.8,1.23765]
[1758661437231,0.3122,4171.3,4170.9,0.85244]
[1758661437427,4.0651,4171.5,4171.4,0.64319]
[1758661437628,4.5896615,4171.5,4171.4,0.64319]
[1758661438035,5.0209415,4171.5,4171.4,0.43129]
[1758661443432,4.5896615,4171.5,4171.4,0.85239]
[1758661443636,4.0651,4171.5,4171.4,0.85239]
[1758661444146,4.0651,4171.5,4171.4,0.43129]
[1758661445131,4.49638,4171.5,4171.4,0.43129]
[1758661445636,4.0651,4171.5,4171.4,0.43129]
[1758661446026,4.49638,4171.5,4171.4,0.43129]
[1758661446229,5.02120729,4171.5,4171.4,0.43129]
[1758661447236,0.3276,4171.0,4170.9,0.2119]
[1758661447442,4.0563,4171.0,4170.9,0.43134]
[1758661447643,0.7265,4170.9,4170.8,0.43135]
[1758661447839,0.7265,4170.2,4170.1,1.22853]
[1758661448139,0.3122,4170.2,4170.1,1.36473]
[1758661449330,0.5178,4170.2,4170.1,1.22853]
[1758661450050,0.122,4170.5,4170.4,0.4314]
[1758661450239,0.8485,4170.5,4170.4,0.8525]
[1758661455639,0.2131,4171.0,4170.6,1.07843]
[1758661455848,0.5643,4171.5,4171.4,0.64489]
[1758661456546,0.5643,4171.5,4171.4,0.43129]
[1758661457743,0.8912,4171.5,4171.4,0.43129]
[1758661458747,0.8912,4171.5,4171.4,1.17229]
[1758661459341,0.7604,4171.5,4171.4,1.17229]
[1758661461143,3.2078,4171.6,4171.5,1.29598]
[1758661461343,3.9682,4171.6,4171.5,1.17228]
[1758661461551,0.7604,4171.6,4171.5,1.17228]
[1758661464554,0.7612,4171.6,4171.5,0.43128]
[1758661465147,0.7612,4171.6,4171.5,0.63648]
[1758661465754,0.7612,4171.6,4171.5,1.15268]
[1758661466566,0.7392,4171.3,4171.2,0.43131]
[1758661466957,0.1298,4171.0,4170.9,0.43134]
[1758661467160,0.869,4171.0,4170.9,0.43134]
[1758661467554,1.30033,4171.0,4170.9,0.43134]
[1758661468765,0.869,4171.0,4170.9,0.43134]
[1758661469465,1.30033,4171.0,4170.9,0.43134]
[1758661469860,1.30033,4171.0,4170.4,0.247]
[1758661470065,0.4115,4170.6,4170.4,0.247]
[1758661470266,0.869,4170.5,4170.4,0.6784]
[1758661471768,0.869,4170.5,4170.4,0.4314]
[1758661480574,1.0783,4171.2,4170.4,0.4314]
[1758661480575,0.3277,4170.9,4170.8,0.84995]
[1758661480879,3.947,4171.3,4171.2,1.15271]
[1758661485474,3.947,4171.3,4171.2,0.84991]
[1758661487078,3.947,4171.3,4171.2,0.43131]
[1758661487279,3.947,4171.3,4171.1,0.43132]
[1758661487484,0.9852,4171.2,4171.1,0.43132]
[1758661488386,1.41651,4171.2,4171.1,0.43132]
[1758661488579,0.84283,4171.1,4171.0,0.43133]
[1758661488778,1.17053,4171.1,4171.0,0.43133]
[1758661489486,1.30035,4171.0,4170.9,0.43133]
[1758661489685,1.30035,4171.0,4170.9,0.63653]
[1758661489686,1.115,4171.0,4170.9,0.63653]
[1758661490682,1.115,4171.0,4170.9,0.43133]
[1758661492579,0.869,4171.0,4170.9,1.15273]
[1758661492890,0.2084,4171.0,4170.9,1.15273]
[1758661493084,0.3277,4171.2,4171.1,0.43132]
[1758661493384,0.5361,4171.2,4171.1,1.16652]
[1758661493780,0.7414,4171.2,4171.1,1.16652]
[1758661494379,0.9874,4171.2,4171.1,1.16652]
[1758661494885,3.2078,4171.3,4171.2,0.43131]
[1758661495187,3.2078,4171.3,4171.2,1.16651]
[1758661498687,0.4168,4171.5,4171.4,0.4303]
[1758661498878,0.7408,4171.5,4171.4,0.7352]
[1758661500184,0.7408,4171.5,4171.4,1.16649]
[1758661500390,0.8686,4171.5,4171.4,1.16649]
[1758661500689,0.8686,4171.5,4171.4,0.86159]
[1758661501287,0.8686,4171.5,4171.4,0.43129]
[1758661503385,0.8686,4171.5,4171.4,0.95489]
[1758661503890,0.8686,4171.5,4171.4,1.16649]
[1758661505382,3.2078,4171.8,4171.7,0.43126]
[1758661505589,3.2078,4171.8,4171.7,1.16646]
[1758661505790,3.4193,4172.3,4172.2,1.16641]
[1758661506090,3.2078,4172.3,4172.2,1.16641]
[1758661509495,3.7433,4172.3,4172.2,1.16641]
[1758661509793,3.7433,4172.3,4172.2,0.43121]
[1758661509794,4.1946,4172.3,4172.2,0.43121]
[1758661524002,4.6258,4172.3,4172.2,0.43121]
[1758661524801,4.1946,4172.3,4172.2,0.43121]
[1758661525000,0.1218,4172.0,4171.5,1.3242]
[1758661525203,0.8679,4172.0,4171.9,0.43124]
[1758661525797,0.8679,4172.0,4171.9,0.63444]
[1758661526601,0.8679,4172.0,4171.9,0.94514]
[1758661526997,0.8679,4172.0,4171.9,0.63444]
[1758661532707,0.8679,4172.0,4171.9,0.94514]
[1758661533408,0.8679,4172.0,4171.9,0.63444]
[1758661537008,0.8679,4172.0,4171.9,0.94514]
[1758661537919,0.3083,4172.2,4172.1,0.7212]
[1758661538129,3.7387,4172.3,4172.2,1.15241]
[1758661538522,3.9539,4172.3,4172.2,1.15241]
[1758661538727,3.7387,4172.3,4172.2,1.15241]
[1758661542826,3.9539,4172.3,4172.2,1.15241]
[1758661556730,3.9539,4172.3,4172.2,0.84171]
[1758661556933,0.7461,4172.3,4172.2,0.84171]
[1758661557232,0.7461,4172.3,4172.2,1.17081]
[1758661558727,0.7461,4172.3,4172.2,0.43121]
[1758661559031,0.9911,4172.3,4172.2,0.43121]
[1758661560426,0.7402,4171.8,4171.7,0.43126]
[1758661560626,0.3145,4171.4,4171.3,0.4313]
[1758661560829,0.7402,4171.4,4171.3,0.4313]
[1758661565329,0.8624,4171.0,4170.9,0.43134]
[1758661566021,0.43135,4170.9,4170.7,0.43135]
[1758661566220,0.43135,4170.9,4170.1,0.3351]
[1758661566221,0.7402,4170.2,4170.1,0.3351]
[1758661566525,0.7402,4170.2,4170.1,0.55943]
[1758661566728,0.7402,4170.2,4170.1,0.128]
[1758661566926,1.17162,4170.2,4170.1,0.128]
[1758661568839,0.7402,4170.2,4170.1,0.128]
[1758661571429,1.17162,4170.2,4170.1,0.55943]
[1758661573534,0.7402,4170.2,4170.1,0.55943]
[1758661573936,1.17162,4170.2,4170.1,0.55943]
[1758661574738,1.17162,4170.2,4170.1,0.128]
[1758661575039,1.17162,4170.2,4170.1,0.55943]
[1758661575340,1.17162,4170.2,4170.1,0.128]
[1758661576338,1.17162,4170.2,4170.1,0.55943]
[1758661578643,0.7402,4170.2,4170.1,0.55943]
[1758661579444,1.17162,4170.2,4170.1,0.55943]
[1758661579746,0.7402,4170.2,4170.1,0.55943]
[1758661580041,1.17162,4170.2,4170.1,0.55943]
[1758661580740,1.17162,4170.2,4170.1,0.128]
[1758661581042,1.17162,4170.2,4170.1,0.55943]
[1758661583142,0.7402,4170.2,4170.1,0.55943]
[1758661583342,1.17162,4170.2,4170.1,0.55943]
[1758661583946,0.7402,4170.2,4170.1,0.55943]
[1758661584143,0.7402,4170.2,4170.1,0.77593]
[1758661584443,1.41662,4170.2,4170.1,0.77593]
[1758661592653,1.17162,4170.2,4170.1,0.55943]
[1758661592854,1.41662,4170.2,4170.1,0.55943]
[1758661594354,1.93782383,4170.2,4170.1,0.55943]
[1758661594656,1.50640383,4170.2,4170.1,0.55943]
[1758661594949,3.2078,4170.5,4170.1,5.97023]
[1758661595140,0.245,4170.8,4170.7,0.43136]
[1758661595346,3.2078,4171.1,4171.0,0.43133]
[1758661595544,3.6611,4171.1,4171.0,1.14943]
[1758661595953,4.196,4171.1,4171.0,0.84213]
[1758661596148,4.196,4171.1,4171.0,1.14943]
[1758661596754,4.62732,4171.1,4171.0,0.7181]
[1758661596947,3.951,4171.1,4171.0,1.14943]
[1758661597148,4.196,4171.1,4171.0,1.14943]
[1758661598150,3.2078,4171.1,4171.0,1.27373]
[1758661598353,3.4528,4171.1,4171.0,1.27373]
[1758661598955,3.2078,4171.1,4171.0,1.27373]
[1758661599856,0.245,4171.2,4171.1,1.14942]
[1758661601048,0.2083,4170.7,4170.6,0.2043]
[1758661601249,0.7852,4171.0,4170.9,1.14944]
[1758661601650,0.5402,4171.0,4170.9,1.14944]
[1758661604552,0.3395,4170.5,4170.3,0.3073]
[1758661604856,0.5402,4170.5,4170.4,1.1495]
[1758661605062,0.7432,4170.9,4170.8,1.14945]
[1758661605360,0.9882,4170.9,4170.8,1.14945]
[1758661606870,1.41954,4170.9,4170.8,0.43135]
[1758661607955,1.17457,4170.7,4170.6,0.43137]
[1758661609964,0.7432,4170.7,4170.6,0.43137]
[1758661611262,0.7432,4170.7,4170.3,0.3073]
[1758661611464,1.17462,4170.2,4170.1,0.128]
[1758661611661,1.41962,4170.2,4170.1,0.128]
[1758661612057,0.43148,4169.7,4169.6,0.43148]
[1758661612261,4.62748,4169.7,4169.6,0.43148]
[1758661612465,0.1312,4169.5,4169.4,0.4315]
[1758661612766,1.3059,4169.5,4169.2,0.3073]
[1758661613566,0.5152,4169.4,4169.3,0.64261]
[1758661613870,0.7371,4169.4,4169.3,0.64261]
[1758661614560,0.7371,4169.4,4169.3,0.94791]
[1758661617060,0.7371,4169.4,4169.3,0.5164]
[1758661617262,0.4346,4169.2,4169.1,0.64263]
[1758661617458,3.9449,4169.2,4169.1,0.64263]
[1758661617664,3.9449,4169.2,4169.1,0.2111]
[1758661617863,0.8611,4169.0,4168.9,0.64264]
[1758661618064,0.8611,4169.0,4168.9,0.2111]
[1758661618768,0.3025,4169.0,4168.9,0.7372]
[1758661618975,0.245,4169.1,4169.0,1.29314]
[1758661619673,0.5475,4169.1,4169.0,1.29314]
[1758661619876,0.7602,4169.1,4169.0,1.29314]
[1758661622775,0.7602,4169.1,4169.0,0.64264]
[1758661622776,1.41363,4169.1,4169.0,0.64264]
[1758661623572,0.9821,4169.1,4169.0,0.64264]
[1758661623880,0.9821,4169.1,4169.0,0.94794]
[1758661624181,1.41363,4169.1,4169.0,0.94794]
[1758661624878,0.9821,4169.1,4169.0,0.94794]
[1758661625474,1.41363,4169.1,4169.0,0.94794]
[1758661626579,0.9821,4169.1,4169.0,0.94794]
[1758661627575,1.41363,4169.1,4169.0,0.94794]
[1758661627876,0.9821,4169.1,4169.0,0.94794]
[1758661628380,1.41363,4169.1,4169.0,0.94794]
[1758661628882,0.9821,4169.1,4169.0,0.94794]
[1758661630775,0.9821,4169.1,4169.0,1.16874]
[1758661641890,0.7371,4169.1,4169.0,1.16874]
[1758661642094,3.2078,4169.2,4169.1,1.17533]
[1758661642298,3.4528,4169.2,4169.1,1.17533]
[1758661642992,3.7766,4169.2,4169.1,1.17533]
[1758661643386,3.2078,4169.2,4169.1,1.17533]
[1758661648503,3.7381,4169.2,4169.1,1.17533]
[1758661649695,3.947,4169.2,4169.1,0.43153]
[1758661650392,3.947,4169.2,4169.1,0.64673]
[1758661650597,4.192,4169.2,4169.1,0.94883]
[1758661653209,4.192,4169.2,4169.1,1.16833]
[1758661653499,3.2078,4169.2,4169.1,1.16833]
[1758661653702,3.2078,4169.7,4169.6,1.16828]
[1758661653903,3.5185,4169.7,4169.6,1.41228]
[1758661654098,3.7381,4169.7,4169.6,6.41228]
[1758661655404,0.5303,4169.7,4169.6,6.41228]
[1758661656307,0.7392,4169.7,4169.6,1.41228]
[1758661660106,0.1298,4169.5,4169.4,0.4315]
[1758661660410,0.869,4169.5,4169.4,0.4315]
[1758661663209,0.869,4169.5,4168.9,0.5461]
[1758661663210,1.1707,4169.4,4169.3,0.43151]
[1758661663612,0.7392,4169.4,4169.3,0.43151]
[1758661666718,1.1707,4169.4,4169.3,0.43151]
[1758661667415,1.30054,4169.0,4168.9,0.43155]
[1758661670307,0.1298,4168.0,4167.9,0.02399319]
[1758661670520,0.869,4168.0,4167.9,0.45567319]
[1758661671122,1.30067,4168.0,4167.9,0.02399319]
[1758661671820,1.54467,4168.0,4167.9,0.02399319]
[1758661672213,1.113,4168.0,4167.9,0.02399319]
[1758661676427,1.113,4168.0,4167.9,0.45567319]
[1758661677517,4.3208,4168.0,4167.9,0.45567319]
[1758661677921,4.3208,4168.0,4167.9,0.02399319]
[1758661678223,4.75247,4168.0,4167.9,0.02399319]
[1758661678625,0.8817,4167.5,4167.4,0.43173]
[1758661678927,0.4221,4167.1,4167.0,0.96687]
[1758661679124,0.7575,4167.1,4167.0,0.96687]
[1758661679620,0.7575,4167.1,4167.0,1.17857]
[1758661682125,0.7575,4167.1,4167.0,0.64797]
[1758661682428,0.4221,4167.1,4166.5,0.3679]
[1758661682622,0.7575,4166.6,4166.5,1.17862]
[1758661690630,0.3354,4166.6,4166.5,1.17862]
[1758661690938,0.3354,4166.6,4166.5,1.30732]
[1758661691237,0.5452,4166.6,4166.5,1.30732]
[1758661693441,0.5452,4166.6,4166.5,1.17862]
[1758661694244,0.7493,4166.6,4166.5,1.17862]
[1758661707549,0.5452,4166.6,4166.5,1.30632]
[1758661708851,2.30453882,4167.4,4167.3,0.7394]
[1758661709155,2.30453882,4167.4,4167.3,0.85624]
[1758661709156,1.18714544,4167.4,4167.3,0.85624]
[1758661709455,0.3276,4167.3,4167.1,0.43175]
[1758661709642,1.27074544,4167.2,4167.1,0.43175]
[1758661710043,1.70249544,4167.2,4166.9,0.43177]
[1758661710252,0.7497,4166.8,4166.7,0.4318]
[1758661710459,1.51485994,4166.8,4166.7,0.4318]
[1758661710748,0.7497,4166.3,4166.2,0.7394]
[1758661711052,0.9937,4166.3,4166.2,0.65266]
[1758661711243,1.51496556,4166.3,4166.2,0.65266]
[1758661711448,0.9937,4166.3,4166.2,0.65266]
[1758661719060,0.9937,4166.3,4166.2,0.96756]
[1758661719262,0.9937,4166.3,4166.2,0.65266]
[1758661719459,0.9937,4166.3,4166.2,0.43186]
[1758661722264,1.94624383,4166.3,4166.2,0.43186]
[1758661723264,2.14113072,4166.3,4166.2,0.43186]
[1758661724667,1.51439383,4166.3,4166.2,0.43186]
[1758661724868,1.94624383,4166.3,4166.2,0.43186]
[1758661728062,1.51439383,4166.3,4166.2,0.43186]
[1758661729070,0.5467,4166.3,4166.2,1.17126]
[1758661729259,3.4269,4166.4,4166.3,1.17125]
[1758661729565,4.2015,4166.4,4166.3,0.65265]
[1758661729960,4.2015,4166.4,4166.3,1.17125]
[1758661730272,4.2015,4166.4,4166.3,0.43185]
[1758661730963,4.2015,4166.4,4166.3,1.17125]
[1758661731863,3.2078,4166.4,4166.3,1.17125]
[1758661732063,3.4518,4166.4,4166.3,1.17125]
[1758661732859,4.2015,4166.4,4166.3,0.96755]
[1758661733065,4.2015,4166.4,4166.3,0.43185]
[1758661738065,5.15419862,4166.4,4166.3,0.43185]
[1758661747781,4.72235862,4166.4,4166.3,0.43185]
[1758661748280,5.15419862,4166.4,4166.3,0.43185]
[1758661748482,4.72235862,4166.4,4166.3,0.43185]
[1758661750884,4.27535862,4166.4,4166.3,1.15365]
[1758661751085,3.97265862,4166.4,4166.3,1.15365]
[1758661751488,4.51085862,4166.4,4166.3,1.15365]
[1758661751888,3.72865862,4166.4,4166.3,1.15365]
[1758661752094,3.4518,4166.4,4166.3,6.15365]
[1758661754389,3.2078,4166.4,4166.3,6.15365]
[1758661757990,0.244,4166.5,4166.4,1.18814]
[1758661758996,0.3267,4166.7,4166.6,0.43182]
[1758661759198,0.5707,4166.7,4166.6,1.18812]
[1758661759792,0.244,4166.7,4166.6,1.18812]
[1758661759987,3.6644,4167.0,4166.6,1.18812]
[1758661759988,3.5345,4167.0,4166.9,0.43179]
[1758661760196,3.2078,4167.0,4166.9,1.18809]
[1758661760397,3.2078,4167.0,4166.9,6.18809]
[1758661761900,0.5707,4167.3,4167.2,1.18805]
[1758661762805,0.7937,4167.3,4167.2,1.18805]
[1758661764399,3.2078,4168.1,4168.0,0.43167]
[1758661764704,3.8633,4168.1,4168.0,1.17187]
[1758661765101,4.1791,4168.1,4168.0,1.17187]
[1758661767110,4.1791,4168.1,4168.0,0.85677]
[1758661767311,4.1791,4168.1,4168.0,0.43167]
[1758661771409,3.9351,4168.1,4168.0,0.43167]
[1758661771605,4.1791,4168.1,4168.0,0.43167]
[1758661776314,4.1791,4168.1,4168.0,0.95337]
[1758661776715,3.9351,4168.1,4168.0,1.17187]
[1758661776916,0.542,4168.5,4168.4,0.43163]
[1758661777115,0.4115,4168.5,4168.4,1.17183]